Workbook

Sheet BAŞLANGIÇ
B1: BU ŞABLON HAKKINDA
B2: Bu web sitesi bütçe oluşturma aracını kullanarak web sitesindeki başlangıç yatırımını, kazançlarını ve maliyetlerini izleyin.
B3: Toplamları ve değerlendirme ölçümlerini otomatik olarak hesaplamak için tablolara ayrıntıları girin.
B4: Not:
B5: BÜTÇE ARACI çalışma sayfasının A sütununda ek yönergeler sağlanmıştır. Bu metin özellikle gizlenmiştir. Metni kaldırmak için A sütununu ve ardından SİL seçeneğini belirleyin. Metni göstermek için A sütununu seçin ve yazı tipi rengini değiştirin.
B6: Çalışma sayfasındaki tablolar hakkında daha fazla bilgi edinmek için bir tabloda SHIFT ve F10 tuşlarına basın, TABLO seçeneğini ve ardından ALTERNATİF METİN seçeneğini belirleyin.

Sheet BÜTÇE ARACI
B2: Quadrex Hardware
B3: WEB SİTESİ BÜTÇE OLUŞTURMA ARACI
B4: 2022-12-01
B6: Şirket verileri | C6: Oran
B7: Gerekli getiri oranı | C7: 10%
B8: Vergi oranı | C8: 30%
B10: Web sitesi başlangıç yatırımı | C10: Yıl
B11: Donanım (örn. sunucular) | C11: ₺25,000.00
B12: Yazılım (örn. e-ticaret kataloğu yazılımı) | C12: ₺15,000.00
B13: Geliştirme (örn. üçüncü taraf site tasarımı ve geliştirme) | C13: ₺150,000.00
B14: Başlangıç yatırımları toplamı | C14: =SUBTOTAL(109,İlkYatırım[Yıl]) -> ₺190,000.00
B16: Web sitesinden gelen kazançlar | C16: Yıl 1 | D16: Yıl 2 | E16: Yıl 3
B17: Doğrudan satış | C17: ₺15,000.00 | D17: ₺50,000.00 | E17: ₺75,000.00
B18: Geliştirilen promosyon/satış elemanı verimliliğinden kaynaklanan artımlı satışlar | C18: ₺25,000.00 | D18: ₺25,000.00 | E18: ₺25,000.00
B19: Artan iş ortağı katılımından kaynaklanan artımlı satışlar | C19: ₺25,000.00 | D19: ₺25,000.00 | E19: ₺25,000.00
B20: Azalan seyahat maliyetleri | C20: ₺25,000.00 | D20: ₺25,000.00 | E20: ₺25,000.00
B21: Azalan müşteri hizmetleri maliyetleri | C21: ₺50,000.00 | D21: ₺50,000.00 | E21: ₺50,000.00
B22: Toplam kazanç | C22: =SUBTOTAL(109,Kazançlar[Yıl 1]) -> ₺140,000.00 | D22: =SUBTOTAL(109,Kazançlar[Yıl 2]) -> ₺175,000.00 | E22: =SUBTOTAL(109,Kazançlar[Yıl 3]) -> ₺200,000.00
B24: Maliyetler (başlangıç sermayesi yatırımları hariç) | C24: YIL 1 | D24: YIL 2 | E24: YIL 3
B25: Satış maliyeti | C25: ₺7,500.00 | D25: ₺25,000.00 | E25: ₺37,500.00
B26: Bakım | C26: ₺15,000.00 | D26: ₺15,000.00 | E26: ₺15,000.00
B27: Proje yönetimi, müşteri desteği | C27: ₺35,000.00 | D27: ₺35,000.00 | E27: ₺35,000.00
B28: Çevrimiçi reklam, arama motoru kaydı | C28: ₺10,000.00 | D28: ₺10,000.00 | E28: ₺10,000.00
B29: Sermaye harcamalarındaki amortisman (hesaplamada üç yıllık dönem kullanılır) | C29: =İlkYatırım[[#Totals],[Yıl]]/3 -> ₺63,333.33 | D29: =İlkYatırım[[#Totals],[Yıl]]/3 -> ₺63,333.33 | E29: =İlkYatırım[[#Totals],[Yıl]]/3 -> ₺63,333.33
B30: Toplam maliyetler | C30: =SUBTOTAL(109,Maliyetler[YIL 1]) -> ₺130,833.33 | D30: =SUBTOTAL(109,Maliyetler[YIL 2]) -> ₺148,333.33 | E30: =SUBTOTAL(109,Maliyetler[YIL 3]) -> ₺160,833.33
B32: Toplamlar | D32: Yıl 1 | E32: Yıl 2 | F32: Yıl 3
B33: Net kazanç (maliyetler) | D33: =Kazançlar[[#Totals],[Yıl 1]]-Maliyetler[[#Totals],[YIL 1]] -> ₺9,166.67 | E33: =Kazançlar[[#Totals],[Yıl 2]]-Maliyetler[[#Totals],[YIL 2]] -> ₺26,666.67 | F33: =Kazançlar[[#Totals],[Yıl 3]]-Maliyetler[[#Totals],[YIL 3]] -> ₺39,166.67
B34: Vergi | D34: =D33*VergiOranı -> ₺2,750.00 | E34: =E33*VergiOranı -> ₺8,000.00 | F34: =F33*VergiOranı -> ₺11,750.00
B35: Vergi sonrası kar | D35: =D33-D34 -> ₺6,416.67 | E35: ₺18,666.67 | F35: ₺27,416.67
B36: Yeniden eklenen amortisman | D36: =C29 -> ₺63,333.33 | E36: =D29 -> ₺63,333.33 | F36: =E29 -> ₺63,333.33
B37: Nakit akışı | C37: =-İlkYatırım[[#Totals],[Yıl]] -> -₺190,000.00 | D37: =D35+D36 -> ₺69,750.00 | E37: ₺82,000.00 | F37: ₺90,750.00
B38: Kümülatif nakit akışı | C38: =C37 -> -₺190,000.00 | D38: =C38+D37 -> -₺120,250.00 | E38: -₺38,250.00 | F38: ₺52,500.00
B40: Değerlendirme ölçümleri | C40: Değerler
B41: Net güncel değer (NBD) | C41: =C37+(NPV(ROR,D37:F37)) -> ₺9,359.50
B42: İç getiri oranı (IRR) | C42: =IRR(C37:F37) -> 12.66%
B43: Geri ödeme süresi (yıl) | C43: =IF(F38<=0,"3 yıldan fazla",IF(E38<=0,(F37-F38)/F37+2,IF(D38<=0,(E37-E38)/E37+1,IF(C38<=0,(D37-D38)/D37,"Yok")))) -> 2.42
